Cogmind - Beta 11.1 @@@ ROGUE MODE // 2022.05.27 @ 21:56:57 Player: btmk16 Result: Destroyed by Y-54 Guardian with Gatling Laser Performance ------------- Evolutions (4) 2000 Regions Visited (8) 1600 Robots Destroyed (228) 1140 Value Destroyed (8959) 8959 Prototype IDs (33) 660 Alien Tech Used (0) 0 Bonus (8505) 8505 TOTAL SCORE: 22864 Bonus ------- Triggered High Security 1000 High Alert Combat Kills 7239 Follower Combat Kills 14 Aligned with FarCom 300 Friendly Fire -48 Cogmind --------- Core Integrity 0/850 Matter 73/300 Energy 52/100 System Corruption 8% Temperature Cool (12) Movement Core (100) Ox1 Location -6/Extension Parts ------- > --- POWER (1) -------- (None) > --- PROPULSION (5) --- (None) > --- UTILITY (6) ------ (None) > --- WEAPON (3) ------- Assault Cannon > --- INVENTORY (5) ---- Light Fission Core Trap Scanner Drone Bay (2/2) Guided Plasma Cannon Peak State ------------ > --- POWER ------------ Improved Deuterium Engine > --- PROPULSION ------- Armored Treads Carbon-fiber Leg Carbon-fiber Leg Flexi-carbon Leg Flexi-carbon Leg > --- UTILITY ---------- Improved Heat Sink Large Storage Unit Improved Trap Scanner Advanced Terrain Scanner Medium Reactive Plating Improved Field Recycling Unit > --- WEAPON ----------- Gatling Laser Proton Cannon Rocket Array > --- INVENTORY -------- Light Nuclear Core Improved Deuterium Engine Light Treads Improved Heat Sink Trap Scanner Improved Trap Scanner Target Analyzer Transmission Jammer Shock Absorption System Drone Bay Guided Plasma Cannon Heavy Missile Launcher Heavy Missile Launcher Rocket Array Rocket Array [Rating: 65] Favorites ----------- Power Improved Deuterium Engine Engine Improved Deuterium Engine Power Core Nuclear Core Propulsion Light Treads Treads Light Treads Leg Aluminum Leg Wheel Armored Huge Wheel Utility Large Storage Unit Device Improved Heat Sink Storage Large Storage Unit Processor Visual Processing Unit Protection Hardened Light Armor Plating Weapon Shotgun Energy Gun High-powered Field Laser Energy Cannon Heavy Particle Cannon Ballistic Gun Shotgun Ballistic Cannon Flak Cannon Launcher Rocket Array Impact Weapon Impact Mace Build | -11 -10 -10 -10 -9 -8 -7 -6 -6 ------- Run | Scr Mat Min Exi Min Mat Fac Fac Ext Slots Evolved 8 | . . . . . 4 2 2 . Power . | . . . . . . . . . Propulsion 3 | . . . . . 2 . 1 . Utility 4 | . . . . . 2 2 . . Weapon 1 | . . . . . . . 1 . Parts Attached 210 | . 7 4 . 3 26 137 31 2 Power 12 | . 1 . . 1 1 7 2 . Engine 10 | . 1 . . 1 1 5 2 . Core 2 | . . . . . . 2 . . Reactor . | . . . . . . . . . Propulsion 51 | . 2 . . 1 8 31 9 . Treads 22 | . 2 . . 1 8 8 3 . Leg 25 | . . . . . . 19 6 . Wheel 4 | . . . . . . 4 . . Hover . | . . . . . . . . . Flight . | . . . . . . . . . Utility 57 | . 3 2 . . 4 40 8 . Device 30 | . . 1 . . 1 22 6 . Storage 5 | . 2 . . . . 2 1 . Processor 2 | . . 1 . . . . 1 . Hackware . | . . . . . . . . . Protection 20 | . 1 . . . 3 16 . . Artifact . | . . . . . . . . . Weapon 90 | . 1 2 . 1 13 59 12 2 Energy Gun 22 | . 1 . . . . 20 1 . Energy Cannon 13 | . . . . . 4 4 4 1 Ballistic Gun 10 | . . 1 . 1 2 4 2 . Ballistic Cannon 12 | . . . . . 4 7 . 1 Launcher 32 | . . 1 . . 3 23 5 . Special Weapon . | . . . . . . . . . Impact Weapon 1 | . . . . . . 1 . . Slashing Weapon . | . . . . . . . . . Piercing Weapon . | . . . . . . . . . Special Melee Weapon . | . . . . . . . . . Unidentified Prototypes 6 | . . . . . 2 4 . . Parts Lost 65 | . . . . 3 2 45 15 . Power 4 | . . . . 1 . 2 1 . Propulsion 28 | . . . . 1 . 19 8 . Utility 21 | . . . . . 1 17 3 . Weapon 12 | . . . . 1 1 7 3 . Highest Loss Streak 12 | . . . . 1 2 12 12 . To Critical Strikes . | . . . . . . . . . Average Slot Usage (%) 91 | . 98 100 100 99 98 89 72 1 Engine 8 | . 14 14 14 14 9 5 5 . Treads 16 | . 12 28 28 28 35 9 3 . Leg 9 | . 15 . . . . 13 21 . Wheel 1 | . . . . . . 2 . . Device 7 | . . . . . . 11 19 . Storage 12 | . 24 14 14 14 9 13 4 . Processor 6 | . . 13 14 14 9 4 . . Protection 8 | . 2 . . . 17 10 4 . Energy Gun 6 | . 28 26 14 . . 4 1 . Energy Cannon 1 | . . . . . 1 2 4 . Ballistic Gun 4 | . . 1 14 27 7 1 . . Ballistic Cannon 3 | . . . . . 7 4 . 1 Launcher 1 | . . . . . 1 1 2 . Naked Turns 68 | . . . . . . . 49 19 Heaviest Build 89 | 11 33 33 30 31 49 73 89 10 Greatest Support 85 | 20 40 40 40 40 82 82 85 3 Greatest Overweight (x) 4 | . 3 . . . . 4 1 3 Average Overweight (x) . | . . . . . . . . . Largest Inventory Capacity 15 | . 15 15 15 15 15 15 15 5 Average Capacity 14 | . 10 15 15 15 15 15 13 5 Most Carried 15 | . 15 15 15 15 15 15 15 4 Average Carried 13 | . 9 14 14 14 14 14 10 3 Final Capacity 15 | 8 15 15 15 15 15 15 15 5 Final Carried 15 | 6 15 15 15 15 14 15 7 4 Class Distribution -------------------- 52% | Scavenger-Mutant 40% | Mutant 7% | Scavenger-Skirmisher Dominant Class ---------------- Mutant | -10/Materials Scavenger-Mutant | -10/Mines Scavenger-Mutant | -10/Exiles Mutant | -9/Mines Mutant | -8/Materials Scavenger-Mutant | -7/Factory Mutant | -6/Factory Mutant | -6/Extension Resources | -11 -10 -10 -10 -9 -8 -7 -6 -6 ----------- Run | Scr Mat Min Exi Min Mat Fac Fac Ext Matter Collected 4609 | 200 40 86 14 196 829 3032 212 . Remotely 634 | . . . . . . 634 . . Salvage Created 8228 | . 306 258 . 311 829 5844 680 . Parts 436 | . 24 28 . 11 56 282 35 . Haulers Intercepted 10 | . 1 . . . 4 5 . . Recyclers Shooed 3 | . 1 1 . . . 1 . . Parts Field Recycled 22 | . . . . . . 4 18 . Retrieved Matter 245 | . . . . . . 12 233 . Parts Self-Destructed . | . . . . . . . . . Prevented . | . . . . . . . . . Kills | -11 -10 -10 -10 -9 -8 -7 -6 -6 ------- Run | Scr Mat Min Exi Min Mat Fac Fac Ext Combat Hostiles Destroyed 221 | . 5 10 . 6 18 166 16 . Guns 48 | . 5 9 . 6 4 18 6 . Cannons 40 | . . . . . 9 26 5 . AOE 132 | . . 1 . . 4 122 5 . Classes Destroyed 19 | . 3 4 . 2 3 6 1 . Worker 6 | . . . . 1 1 4 . . Builder 7 | . . 1 . . 2 4 . . Tunneler 2 | . . 1 . 1 . . . . Hauler 10 | . 1 . . . 4 5 . . Recycler 11 | . . 1 . 1 1 8 . . Mechanic 9 | . . . . . . 9 . . Watcher 2 | . 1 . . . 1 . . . Swarmer 23 | . . 10 . . 3 10 . . Saboteur 2 | . . . . . . . 2 . Grunt 95 | . 5 . . 5 7 73 5 . Brawler 13 | . . . . . . 11 2 . Duelist 10 | . . . . . . 9 1 . Protector 18 | . . . . . . 17 1 . Sentry 12 | . . . . . 5 6 1 . Specialist 2 | . . . . . 2 . . . Hunter 26 | . . . . . . 24 2 . Programmer 17 | . . . . . . 15 2 . Heavy 2 | . . . . . 1 1 . . Assembled 1 | . . . . 1 . . . . Best Kill Streak 22 | . 3 3 . 3 4 22 7 . Combat Bots Only 22 | . 3 3 . 2 3 22 7 . Max Kills in Single Turn 8 | . 1 1 . 1 2 8 2 . Gunslinging . | . . . . . . . . . Exploded 8 | . . 1 . . 2 8 2 . Melee . | . . . . . . . . . Uniques/NPCs Destroyed . | . . . . . . . . . Combat | -11 -10 -10 -10 -9 -8 -7 -6 -6 -------- Run | Scr Mat Min Exi Min Mat Fac Fac Ext Damage Taken 11743 | . 203 218 . 372 1153 7168 2439 190 Core 1711 | . . 32 . 41 107 671 723 137 Absorbed by Shields 8 | . . . . . . 8 . . Regen/Repaired (Parts) 105 | . . . . . . . 105 . Core Remaining (%) 63 | 100 . . . 70 80 4 . . Volleys Fired 428 | . 24 23 . 25 59 248 42 7 Largest 3 | . 2 2 . 2 2 2 3 1 Hottest 183 | . 80 80 . 63 126 145 183 120 Shots Fired 728 | . 48 43 . 48 103 423 56 7 Gun 370 | . 48 42 . 48 22 185 25 . Cannon 259 | . . . . . 56 170 26 7 Launcher 99 | . . 1 . . 25 68 5 . Special . | . . . . . . . . . Kinetic 276 | . . 3 . 44 62 159 4 4 Thermal 232 | . 24 17 . . . 151 37 3 Explosive 99 | . . 1 . . 25 68 5 . Electromagnetic 121 | . 24 22 . 4 16 45 10 . Robot Hit Streak 24 | . 15 7 . 7 10 19 24 8 Robot Miss Streak 6 | . 2 3 . 3 6 6 5 1 Penetration Max 1 | . . . . . . 1 . . Secondary Targets 2 | . . . . . . 2 . . Max Gunslinging Chain 1 | . . . . . . 1 . . Shots Hit Robots 496 | . 37 23 . 35 76 287 35 3 Core Hits 754 | . 15 14 . 21 59 599 45 1 Critical Kills 1 | . . . . . . 1 . . Critical Parts Destroyed . | . . . . . . . . . Critical Strikes 10 | . 1 . . . . 9 . . Burn 7 | . . . . . . 7 . . Meltdown 1 | . . . . . . 1 . . Blast 1 | . . . . . . 1 . . Corrupt 1 | . 1 . . . . . . . Melee Attacks . | . . . . . . . . . Impact . | . . . . . . . . . Slashing . | . . . . . . . . . Piercing . | . . . . . . . . . Sneak Attacks . | . . . . . . . . . Combat Hostiles . | . . . . . . . . . Follow-up Attacks . | . . . . . . . . . Damage Inflicted 27728 | . 573 398 . 515 1889 22086 2132 135 Guns 4709 | . 481 288 . 515 252 2716 457 . Cannons 4638 | . . . . . 902 2904 699 133 Explosions 18346 | . 92 110 . . 702 16466 976 . Melee . | . . . . . . . . . Ramming 35 | . . . . . 33 . . 2 Kinetic 3967 | . . 10 . 489 843 2539 20 66 Thermal 4698 | . 300 176 . . 66 2997 1092 67 Explosive 17492 | . . 65 . . 636 15860 931 . Electromagnetic 1536 | . 273 147 . 26 311 690 89 . Impact . | . . . . . . . . . Slashing . | . . . . . . . . . Piercing . | . . . . . . . . . Highest Corruption 8 | . . . . . . 7 8 8 Average Corruption 6 | . . . . . . 6 8 8 Corruption Purged 4 | . . . . . . 4 . . Corruption Blocked . | . . . . . . . . . Effects 174 | . . . . . . 162 11 1 Message Errors 42 | . . . . . . 38 4 . Matter Fused 41 | . . . . . . 39 2 . Heat Flow Errors 18 | . . . . . . 16 1 1 Energy Discharges 21 | . . . . . . 20 1 . Parts Rejected 2 | . . . . . . 2 . . Data Loss (minor) 21 | . . . . . . 20 1 . Data Loss (major) 15 | . . . . . . 14 1 . Misfires 5 | . . . . . . 4 1 . Alerts 6 | . . . . . . 6 . . Weapon Failures 3 | . . . . . . 3 . . Overload Shots . | . . . . . . . . . Overflow Damage 182 | . . 3 . . 59 120 . . Projectiles 41 | . . . . . 22 19 . . Explosions 141 | . . 3 . . 37 101 . . Melee . | . . . . . . . . . Knockbacks 32 | . . . . . 11 21 . . Impact . | . . . . . . . . . Kinetic 31 | . . . . . 11 20 . . Secondary 1 | . . . . . . 1 . . Self-Inflicted Damage 1324 | . . . . . 81 843 399 1 Shots 39 | . . . . . 2 30 7 . Rammed 2 | . . . . . 1 . . 1 Targets Rammed 4 | . . . . . 3 . . 1 Kicked . | . . . . . . . . . Crushed 2 | . . . . . 2 . . . Highest Temperature 390 | . 228 90 . 63 222 390 352 142 Average Temperature 91 | . 77 26 . 28 65 108 117 69 Received Heat Transfer 2817 | . 111 . . 159 279 1665 537 66 Effects 13 | . . . . . . 12 1 . Shutdowns 2 | . . . . . . 1 1 . Energy Bleed 5 | . . . . . . 5 . . Interference 3 | . . . . . . 3 . . Short Circuit 2 | . . . . . . 2 . . Damage (minor) 1 | . . . . . . 1 . . Siege Activations . | . . . . . . . . . Robots Corrupted 1 | . . . . . 1 . . . Combat Hostiles 1 | . . . . . 1 . . . Parts Fried 1 | . . . . . . 1 . . Impact Corruptions . | . . . . . . . . . Robots Melted 1 | . . . . . . 1 . . Combat Hostiles . | . . . . . . . . . Parts Melted 18 | . 1 . . . . 7 10 . Heat Transferred 8106 | . 550 400 . . 50 4616 2330 160 Parts Sabotaged . | . . . . . . . . . Parts Stolen . | . . . . . . . . . Parts Stripped . | . . . . . . . . . Power Chain Reactions 5 | . 1 1 . . 1 1 1 . Missiles Intercepted . | . . . . . . . . . Alert | -11 -10 -10 -10 -9 -8 -7 -6 -6 ------- Run | Scr Mat Min Exi Min Mat Fac Fac Ext Peak Influence 3917 | . 173 213 . 100 471 3917 2010 1101 Initial 1918 | . . 22 . . . 214 1918 1100 Average 837 | . 58 70 . 37 160 1206 1873 1100 Maximum Alert Level 5 | . . 1 . . 2 5 5 4 Low Security (%) 33 | . 100 99 . 100 59 . . . Level 1 7 | . . . . . 33 6 . . Level 2 18 | . . . . . 7 33 . . Level 3 10 | . . . . . . 21 . . Level 4 10 | . . . . . . 19 . 100 Level 5 7 | . . . . . . . 77 . High Security 11 | . . . . . . 18 22 . Max Security . | . . . . . . . . . Sterilizations 1 | . . . . . . 1 . . Squads Dispatched 67 | . 1 . . . 5 49 11 1 Investigation 3 | . 1 . . . . 2 . . Extermination 8 | . . . . . . 7 1 . Reinforcement 11 | . . . . . 4 6 . 1 Assault 38 | . . . . . . 28 10 . Garrison 7 | . . . . . 1 6 . . Intercept . | . . . . . . . . . Searches Triggered . | . . . . . . . . . Construction Impeded 3 | . . . . . . 3 . . Haulers Reinforced 2 | . . . . . . 2 . . Active Scanning Responses . | . . . . . . . . . Cargo Convoy Interrupts . | . . . . . . . . . Stealth | -11 -10 -10 -10 -9 -8 -7 -6 -6 --------- Run | Scr Mat Min Exi Min Mat Fac Fac Ext Distress Signals 6 | . . . . 1 2 3 . . Communications Jammed 11 | . . . . . . 11 . . Distress Signals 3 | . . . . . . 3 . . Times Spotted 316 | . 12 13 . 9 29 218 34 1 Peak Tracking Total 17 | . 4 4 . 3 5 17 17 1 Tactical Retreats 9 | . 1 1 . 1 2 2 2 . Traps | -11 -10 -10 -10 -9 -8 -7 -6 -6 ------- Run | Scr Mat Min Exi Min Mat Fac Fac Ext Traps Triggered 4 | . . 1 . . 1 1 1 . Indirectly . | . . . . . . . . . Trap Hack Attempts . | . . . . . . . . . Triggered . | . . . . . . . . . Disarmed . | . . . . . . . . . Reprogrammed . | . . . . . . . . . Reused . | . . . . . . . . . Traps Extracted . | . . . . . . . . . Installed . | . . . . . . . . . Triggered . | . . . . . . . . . Exploded 1 | . . . . . . . 1 . Machines | -11 -10 -10 -10 -9 -8 -7 -6 -6 ---------- Run | Scr Mat Min Exi Min Mat Fac Fac Ext Machines Disabled 40 | . . . . . 3 32 5 . Max in Single Turn 9 | . . . . . 1 9 2 . Garrison Access 1 | . . . . . . 1 . . Machines Sabotaged . | . . . . . . . . . Garrisons Compromised . | . . . . . . . . . Overloaded Fab Kills . | . . . . . . . . . Hacking | -11 -10 -10 -10 -9 -8 -7 -6 -6 --------- Run | Scr Mat Min Exi Min Mat Fac Fac Ext Machines Accessed 19 | . 5 2 1 . 1 9 1 . Terminals 12 | . 5 1 . . 1 5 . . Fabricators 2 | . . . . . . 2 . . Repair Stations 1 | . . . . . . . 1 . Recycling Units . | . . . . . . . . . Scanalyzers . | . . . . . . . . . Garrison Access 2 | . . . . . . 2 . . Total Hacks 54 | . 16 4 1 . 6 25 2 . Successful 24 | . 8 2 1 . 5 6 2 . Failed 30 | . 8 2 . . 1 19 . . Catastrophic 6 | . . . . . 1 5 . . Database Lockouts . | . . . . . . . . . Manual 17 | . 4 . 2 . 5 6 . . Terminals 37 | . 16 3 . . 6 12 . . Fabricators 8 | . . . . . . 8 . . Repair Stations 2 | . . . . . . . 2 . Recycling Units . | . . . . . . . . . Scanalyzers . | . . . . . . . . . Garrison Access 5 | . . . . . . 5 . . Terminal Hacks 18 | . 8 2 1 . 5 2 . . Robot Analysis 6 | . 2 . . . 4 . . . Prototype ID Bank 2 | . 1 . . . 1 . . . Open Door 1 | . . 1 . . . . . . Terminal Index 1 | . 1 . . . . . . . Alert Level 1 | . . . . . . 1 . . Locate Traps 3 | . 2 . . . . 1 . . Hauler Manifests 1 | . 1 . . . . . . . Zone Layout 2 | . 1 1 . . . . . . EX-Prototype ID Bank 1 | . . . 1 . . . . . Fabricator Hacks 1 | . . . . . . 1 . . Network Status 1 | . . . . . . 1 . . Repair Station Hacks 2 | . . . . . . . 2 . Scan Component 1 | . . . . . . . 1 . Repair 1 | . . . . . . . 1 . Recycling Unit Hacks . | . . . . . . . . . Scanalyzer . | . . . . . . . . . Garrison Access Hacks 1 | . . . . . . 1 . . Seal Access 1 | . . . . . . 1 . . Unauthorized Hacks 2 | . . . . . . 2 . . Terminals 2 | . . . . . . 2 . . Track 1 | . . . . . . 1 . . Botnet 1 | . . . . . . 1 . . Fabricators . | . . . . . . . . . Repair Stations . | . . . . . . . . . Recycling Units . | . . . . . . . . . Scanalyzers . | . . . . . . . . . Garrison Access . | . . . . . . . . . Data Cores Recovered . | . . . . . . . . . Used . | . . . . . . . . . Hacking Detections 15 | . 5 1 . . 1 8 . . Full Trace Events 4 | . 1 1 . . . 2 . . Feedback Events 1 | . . . . . . 1 . . Corruption 1 | . . . . . . 1 . . Feedback Blocked . | . . . . . . . . . Robot Schematics Acquired . | . . . . . . . . . Robots Built . | . . . . . . . . . Authchips . | . . . . . . . . . Time . | . . . . . . . . . Total Robot Build Rating . | . . . . . . . . . Part Schematics Acquired . | . . . . . . . . . Parts Built . | . . . . . . . . . Authchips . | . . . . . . . . . Time . | . . . . . . . . . Total Part Build Rating . | . . . . . . . . . Parts Repaired 1 | . . . . . . . 1 . Time 38 | . . . . . . . 38 . Parts Recycled . | . . . . . . . . . Recycled Matter . | . . . . . . . . . Retrieved Matter . | . . . . . . . . . Retrieved Components . | . . . . . . . . . Parts Scanalyzed . | . . . . . . . . . Part Schematics Acquired . | . . . . . . . . . Parts Damaged . | . . . . . . . . . Bothacking | -11 -10 -10 -10 -9 -8 -7 -6 -6 ------------ Run | Scr Mat Min Exi Min Mat Fac Fac Ext Used RIF Installer . | . . . . . . . . . Robots Hacked . | . . . . . . . . . Non-combat . | . . . . . . . . . Combat . | . . . . . . . . . Robot Hacks Applied . | . . . . . . . . . Relay Couplers Released . | . . . . . . . . . Fabnet Peak Effective % . | . . . . . . . . . Robots Rewired . | . . . . . . . . . Allies Hacked . | . . . . . . . . . Hacks Repelled . | . . . . . . . . . Allies | -11 -10 -10 -10 -9 -8 -7 -6 -6 -------- Run | Scr Mat Min Exi Min Mat Fac Fac Ext Total Allies 1 | . . 1 . . . . . . Largest Group 1 | . . 1 . . . . . . Highest-Rated Group 31 | . . 31 . . . . . . Highest-Rated Ally 31 | . . 31 . . . . . . Total Orders . | . . . . . . . . . Ally Attacks 12 | . . 12 . . . . . . Total Damage 63 | . . 63 . . . . . . Kills 2 | . . 2 . . . . . . Allies Corrupted . | . . . . . . . . . Allies Melted . | . . . . . . . . . Intel | -11 -10 -10 -10 -9 -8 -7 -6 -6 ------- Run | Scr Mat Min Exi Min Mat Fac Fac Ext Robot Analysis Total 6 | . 2 . . . 4 . . . Derelict Logs Recovered 3 | . . 1 . 2 . . . . Drone Launches . | . . . . . . . . . Drone Recoveries . | . . . . . . . . . Exploration | -11 -10 -10 -10 -9 -8 -7 -6 -6 ------------- Run | Scr Mat Min Exi Min Mat Fac Fac Ext Turns Passed 11431 | . 633 1044 413 1089 1543 5565 1108 36 Spaces Moved 5632 | 1 378 557 257 612 660 2566 569 32 Core 127 | . 1 . . . . . 94 32 Treads 3028 | . 161 557 257 612 660 709 72 . Legs 1399 | 1 216 . . . . 779 403 . Wheels 1078 | . . . . . . 1078 . . Hover . | . . . . . . . . . Flight . | . . . . . . . . . Fastest Speed 50 | 120 120 160 160 160 160 115 50 50 Average Speed 155 | 120 137 160 160 160 160 156 151 54 Slowest Speed 330 | 120 200 160 160 160 165 330 190 200 Overloaded Moves . | . . . . . . . . . Propulsion Burnouts . | . . . . . . . . . Robots Hopped . | . . . . . . . . . Cave-ins Triggered 1 | . . . . . . . 1 . Exploration Rate (%) 45 | 2 49 90 64 85 44 57 10 10 Regions Visited 8 Branch Regions 4 Pre-discovered Areas 1 | . . . . 1 . . . . Known Exits Taken . | . . . . . . . . . Unknown Exits Taken 8 | 1 1 1 1 1 1 1 1 . Scrap Searched 2 | . . 1 . 1 . . . . Spaces Dug 100 | . . . . . . 100 . . Terrain Destroyed 1073 | . 4 8 . . 184 784 92 1 Melee . | . . . . . . . . . Projectile 13 | . . . . . . 12 . 1 AOE 1060 | . 4 8 . . 184 772 92 . Terrain Rammed . | . . . . . . . . . Walls Destroyed . | . . . . . . . . . Machines Disabled . | . . . . . . . . . Actions | -11 -10 -10 -10 -9 -8 -7 -6 -6 --------- Run | Scr Mat Min Exi Min Mat Fac Fac Ext Total 7535 | . 447 668 260 674 1045 3638 760 43 Wait 1089 | . 22 78 . 31 266 601 91 . Move 5624 | . 377 556 256 611 659 2565 568 32 Hop . | . . . . . . . . . Pick Up 63 | . 10 3 2 3 11 26 8 . Fast Attach 72 | . 4 1 . 1 6 48 11 1 Attach 47 | . . . . 2 6 30 8 1 Detach 17 | . . . . . 1 10 5 1 Swap 91 | . 3 3 . . 14 59 12 . Drop 92 | . 7 4 2 1 20 43 15 . Fire 428 | . 24 23 . 25 59 248 42 7 Melee . | . . . . . . . . . Ram 1 | . . . . . . . . 1 Kick . | . . . . . . . . . Crush 3 | . . . . . 3 . . . Escape Stasis 8 | . . . . . . 8 . . Rewire . | . . . . . . . . . Trap . | . . . . . . . . . Miscellaneous . | . . . . . . . . . Route ------- -11/Scrapyard -10/Materials -10/Mines (discovered 3 exits: [*Mat x2] / *Exi) -10/Exiles (discovered 2 exits: [*Min x2]) -9/Mines -8/Materials -7/Factory -6/Factory -6/Extension History --------- Turn | Location | Event 1 | -11/Scrapyard | Discovered new exit (range 0) 1 | -11/Scrapyard | Entered Materials 268 | -10/Materials | Discovered new exit (range 6) 306 | -10/Materials | Build established: Mutant 634 | -10/Materials | Entered Mines 645 | -10/Mines | Met a Derelict who couldn't figure out how to use a Trap Extractor 879 | -10/Mines | YI-UF0 nonchalantly dropped a Grenade Launcher on the ground 896 | -10/Mines | Learned Materials stockpile data 940 | -10/Mines | Discovered new exit (range 8) 1013 | -10/Mines | Build established: Scavenger-Mutant 1117 | -10/Mines | Received a Mining Laser from a helpful Derelict 1442 | -10/Mines | Discovered new exit (range 8) 1477 | -10/Mines | A weapon hastily lodged in a ceiling crevice suddenly fell to the ground 1672 | -10/Mines | Deemed a non-threat by the Exiles lab entrance 1672 | -10/Mines | Discovered new exit (range 5) 1678 | -10/Mines | Entered Exiles 1699 | -10/Exiles | Discovered new exit (range 16) 1718 | -10/Exiles | Met 8R-AWN 1744 | -10/Exiles | Met EX-HEX 1792 | -10/Exiles | Met EX-BIN 1811 | -10/Exiles | Aligned with FarCom system 1813 | -10/Exiles | Given EX-Vault access code 1854 | -10/Exiles | Opened EX-Vault 1868 | -10/Exiles | Found Gui. Plasma Cannon 1899 | -10/Exiles | Warned to stay clear of 0b10 Research branches 1944 | -10/Exiles | Met EX-DEC 2072 | -10/Exiles | Discovered new exit (range 12) 2091 | -10/Exiles | Left Exiles lab with Gui. Plasma Cannon 2091 | -10/Exiles | Entered Mines 2106 | -9/Mines | Met a Derelict bent on vengeance 2274 | -9/Mines | Learned Materials security intel 2298 | -9/Mines | Found a damaged Exp. Sensor Array with a note attached 2301 | -9/Mines | Found Prototype Device 2671 | -9/Mines | Learned location of Zion (-6) 2684 | -9/Mines | Assembled infested the area 2719 | -9/Mines | Build established: Mutant 3141 | -9/Mines | Discovered new exit (range 6) 3180 | -9/Mines | Entered Materials 3180 | -8/Materials | Evolved 4 slots: Propulsion x2, Utility x2 3217 | -8/Materials | Identified Exp. Sensor Array 3574 | -8/Materials | Build established: Scavenger-Mutant 4056 | -8/Materials | Garrison activated, responded to threat 4299 | -8/Materials | Build established: Mutant 4573 | -8/Materials | Discovered new exit (range 12) 4723 | -8/Materials | Entered Factory 4723 | -7/Factory | Evolved 2 slots: Utility x2 5019 | -7/Factory | Build established: Scavenger-Mutant 5823 | -7/Factory | Lost 6 parts (3n3u) 5889 | -7/Factory | Build established: Mutant 5892 | -7/Factory | Found Prototype Launcher 5892 | -7/Factory | Identified Rocket Array 5896 | -7/Factory | Found Rocket Array 5899 | -7/Factory | Found Rocket Array 5902 | -7/Factory | Found Rocket Array 6207 | -7/Factory | Build established: Scavenger-Mutant 6364 | -7/Factory | Garrison activated, responded to threat 6723 | -7/Factory | First assault squad dispatched 7083 | -7/Factory | Discovered new exit (range 5) 7676 | -7/Factory | Build established: Scavenger-Skirmisher 8143 | -7/Factory | Garrison activated, responded to threat 8516 | -7/Factory | Build established: Mutant 9213 | -7/Factory | Build established: Scavenger-Mutant 9231 | -7/Factory | High security lockdown imminent 9257 | -7/Factory | Destroyed 10 combat bots 9311 | -7/Factory | High security lockdown engaged 9454 | -7/Factory | Destroyed 14 combat bots 9461 | -7/Factory | Lost 4 parts (1p1n2u) 9582 | -7/Factory | Destroyed 14 combat bots 9753 | -7/Factory | Destroyed 8 combat bots 9789 | -7/Factory | Core integrity fell below 50% 9795 | -7/Factory | Sterilization system engaged 9795 | -7/Factory | Non-combat units ordered to evacuate 9842 | -7/Factory | Destroyed 22 combat bots 9843 | -7/Factory | Lost 5 parts (1n3u1w) 9895 | -7/Factory | Combat units ordered to evacuate 9968 | -7/Factory | Destroyed 7 combat bots 9973 | -7/Factory | Core integrity fell below 20% 10004 | -7/Factory | Destroyed 17 combat bots 10008 | -7/Factory | Lost 12 parts (1p6n2u3w) 10095 | -7/Factory | Ambient heat levels rising (+10) 10245 | -7/Factory | Ambient heat levels rising (+10) 10288 | -7/Factory | Entered another Factory area 10288 | -6/Factory | Evolved 2 slots: Propulsion x1, Weapon x1 10358 | -6/Factory | Build established: Mutant 10422 | -6/Factory | Noticed a derelict Sapper rigging charges 10563 | -6/Factory | Repaired Carbon-fiber Leg 10988 | -6/Factory | First assault squad dispatched 11147 | -6/Factory | High security lockdown imminent 11165 | -6/Factory | Crushed by falling debris 11181 | -6/Factory | Destroyed 7 combat bots 11224 | -6/Factory | Lost 12 parts (1p6n3u2w) 11227 | -6/Factory | High security lockdown engaged 11357 | -6/Factory | Core integrity fell below 50% 11364 | -6/Factory | Core integrity fell below 20% 11389 | -6/Factory | Discovered new exit (range 16) 11391 | -6/Factory | Lost 3 parts (2n1w) 11396 | -6/Factory | Entered Extension 11432 | -6/Extension | Destroyed by Y-54 Guardian with Gatling Laser Last Messages --------------- 11360_ C-30 ARC bursts open, deploying its payload. 11360_ G-67 Veteran unfolds itself. 11360_ B-48 Gladiator unfolds itself. 11360_ G-50 Soldier unfolds itself. 11360_ Hvy. Missile Launcher destroyed. 11364_ CKZMXEVDTDBOM< 3FM9R0VCDPCIEIW OJFIUM=|# 11376_ Triggered Heavy Explosive Trap. 11376_ An explosion rips through the floor. 11385_ System corrupted: Matter fused (-5). 11389_ EXIT=FOUND LOCATION=UNKNOWN GOAL=ESCAPE 11396_ Receiving FarCom transmissions... 11400_ K-01 Serf exits Transfer Station. 11402_ System corrupted: Heat flow error (+179). 11413_ ALERT: Hostiles spotted, dispatching reinforcements to Terminal E002. 11419_ Slammed into Y-54 Guardian. 11423_ Acquired Unknown Ballistic Cannon. 11423_ Identified Assault Cannon. Map ----- +----------------------------------------------------+ | | | | | | | | | | | | | | | | | | | | | | | | | ???????????????????????????????????? | | ???????????????????????????????????? | | ???????????????????????????????????? | | ????????#############??????????????? | | ????????# ] ???????????????? | | ????????# ! ????????????????? | | ????????# #???????????????? | | ????????+ " #???????????????? | | ????????# "" !#???????????????? | | ????????# "" #???????????????? | | ????????# "" +???????????????? | | ????????#u "" #???????????????? | | ?????#### ][ "" #???????????????? | | ?????# @[ "" +???????????????? | | ?????#% Y ][ " #???????????????? | | ?????# #???????????????? | | ?????# ????????????? | | ?????# #####""T""#######???????????? | | ?????# #???#"""""#?????????????????? | | ?????# #???#######?????????????????? | | ?????# #???????????????????????????? | | ?????# #???????????????????????????? | | ?????# #???????????????????????????? | | ?????# #???????????????????????????? | | ?????# #???????????????????????????? | | ?????# #???????????????????????????? | | ?????# #???????????????????????????? | | ?????# #???????????????????????????? | | ?????# #???????????????????????????? | | ?????# #???????????????????????????? | | ?????# #???????????????????????????? | | ?????# #???????????????????????????? | | ?????# #???????????????????????????? | | ?????# #???????????????????????????? | | ?##### #####???????????????????????? | | ?# "" "" #???????????????????????? | | ?# " " ##########??????????????? | | ?# ?????????????? | +----------------------------------------------------+ Best States ------------- Heat Dissipation 75 Energy Generation 16 Energy Capacity 540 Matter Stores 500 Matter Capacity 500 Sight Range 18 Terrain Scan Range 20 Terrain Scan Density 10 Jamming Range 12 Armor Coverage 825 Resistance: KI 30 Resistance: EX 25 Resistance: EM 20 Evasion (%) 55 Target Analysis 5 Recoil Reduction 4 Kinecelleration 30 Trap Extractor Capacity 6 Item Schematics ----------------- None Robot Schematics ------------------ None Fabricated ------------ Nothing Alien Tech Used ----------------- None Achievements -------------- None Challenges ------------ None Game ------ Seed ExperimentalAuthchipBox Manual? 0 Play Time 01:23:35 Cumulative 270.0 hours Start 2022.05.27 @ 16:04:08 End 2022.05.27 @ 21:56:57 Sessions 1 Manual Loads 0 Difficulty Rogue Special Mode None Game No. 356 Rogue 356 Adventurer 0 Explorer 0 Win Type - Total 5 Types 4/0/0/1/0/0/0/0/0 Lore% 67 Gallery% 79 Achievement% 57 Wizard Run 0 Options --------- ASCII 0 Keyboard 1 Movement Vi Keybinds 0 Fullscreen 1 Font 18/SmallcapsGlow Map View 76x50 Tactical HUD 1 Map Filters NONE Filters NONE Steam 1 RUN: 711b952f-6880-49ff-be7a-63caab2ff4d9